fUSD/lending_fUSD_20250602
["ID","MTS","AMOUNT","RATE_DAILY","PERIOD"]
[363795915,1748874639189,-378.13,0.00019452,2]
[363795917,1748874639199,-436.63,0.00019452,2]
[363795919,1748874639209,-8762.19,0.00019452,2]
[363795921,1748874639218,-420.0,0.00019452,2]
[363795924,1748874639229,-2239.61,0.00019452,2]
[363795925,1748874639239,-61.90376648,0.00019452,2]
[363795928,1748874639253,-392.60623352,0.00019452,2]
[363795930,1748874639262,-420.0,0.00019452,2]
[363795932,1748874639272,-1097.55,0.00019452,2]
[363795934,1748874639281,-420.0,0.00019452,2]
[363795936,1748874639291,-420.0,0.00019452,2]
[363795938,1748874639300,-420.0,0.00019452,2]
[363795940,1748874639309,-420.0,0.00019452,2]
[363795942,1748874639319,-420.0,0.00019452,2]
[363795944,1748874639328,-420.0,0.00019452,2]
[363795946,1748874639338,-681.94,0.00019452,2]
[363795948,1748874639349,-290.67694692,0.00019452,2]
[363795950,1748874639361,-189.97305308,0.00019452,2]
[363795952,1748874639370,-520.27,0.00019452,2]
[363795954,1748874639379,-190.6656368,0.00019452,2]
[363795956,1748874639391,-229.3343632,0.00019452,2]
[363795958,1748874639401,-420.0,0.00019452,2]
[363795960,1748874639410,-420.0,0.00019452,2]
[363795962,1748874639419,-442.74,0.00019452,2]
[363795964,1748874639428,-1172.43504307,0.00019474,2]
[363795986,1748874639598,-346.21395012,0.00019474,2]
[363795988,1748874639608,-2434.74389024,0.00019496,2]
[363795990,1748874639618,-1200.0,0.000195,7]
[363795992,1748874639628,-170.43,0.000195,2]
[363795994,1748874639638,-1161.73,0.000195,2]
[363795996,1748874639647,-162.83,0.000195,2]
[363795998,1748874639657,-2323.27,0.000195,2]
[363796000,1748874639667,-263.51,0.000195,2]
[363796002,1748874639676,-170.43,0.000195,2]
[363796004,1748874639686,-2323.06,0.000195,2]
[363796006,1748874639695,-1518.64899319,0.00019535,2]
[363796008,1748874639704,-1000.0,0.00019544,2]
[363796010,1748874639714,-2524.82941417,0.00019551,2]
[363796012,1748874639726,-170.20760546,0.00019561,2]
[363796014,1748874639736,-783.23776719,0.00019588,2]
[363796016,1748874639748,-223.76223281,0.00019588,2]
[363796018,1748874639757,-420.0,0.00019589,2]
[363796020,1748874639767,-985.0,0.00019589,2]
[363796022,1748874639777,-420.0,0.00019589,2]
[363796024,1748874639787,-420.0,0.00019589,2]
[363796026,1748874639796,-431.13,0.00019589,2]
[363796028,1748874639805,-420.0,0.00019589,2]
[363796030,1748874639814,-520.7,0.00019589,2]
[363796032,1748874639824,-991.08,0.00019589,2]
[363796034,1748874639834,-469.25,0.00019589,2]
[363796036,1748874639844,-197.60633409,0.00019589,2]
[363796038,1748874639855,-222.39366591,0.00019589,2]
[363796040,1748874639865,-1084.4,0.00019589,2]
[363796042,1748874639875,-923.64,0.00019589,2]
[363796044,1748874639885,-632.94,0.00019589,2]
[363796046,1748874639895,-686.7,0.00019589,2]
[363796048,1748874639905,-420.0,0.00019589,2]
[363796050,1748874639915,-1643.78,0.00019589,2]
[363796052,1748874639924,-420.0,0.00019589,2]
[363796054,1748874639933,-420.0,0.00019589,2]
[363796056,1748874639942,-603.44,0.00019589,2]
[363796058,1748874639952,-420.0,0.00019589,2]
[363796060,1748874639962,-420.0,0.00019589,2]
[363796062,1748874639972,-420.0,0.00019589,2]
[363796064,1748874639982,-524.37,0.00019589,2]
[363796084,1748874640179,-311.64907889,0.00019589,2]
[363796089,1748874640215,-266.49092111,0.00019589,2]
[363796091,1748874640227,-420.0,0.00019589,2]
[363796093,1748874640237,-678.68,0.00019589,2]
[363796095,1748874640247,-483.35,0.00019589,2]
[363796097,1748874640257,-3425.26,0.00019589,2]
[363796099,1748874640266,-420.0,0.00019589,2]
[363796101,1748874640276,-420.0,0.00019589,2]
[363796103,1748874640286,-420.0,0.00019589,2]
[363796105,1748874640296,-254.86,0.00019589,2]
[363796107,1748874640306,-2015.96,0.00019589,2]
[363796109,1748874640315,-748.4,0.00019589,2]
[363796111,1748874640325,-420.0,0.00019589,2]
[363796113,1748874640334,-420.0,0.00019589,2]
[363796115,1748874640343,-436.28,0.00019589,2]
[363796117,1748874640353,-420.0,0.00019589,2]
[363796119,1748874640362,-420.0,0.00019589,2]
[363796121,1748874640372,-738.97,0.00019589,2]
[363796123,1748874640382,-420.0,0.00019589,2]
[363796125,1748874640392,-420.0,0.00019589,2]
[363796127,1748874640401,-420.0,0.00019589,2]
[363796129,1748874640411,-420.0,0.00019589,2]
[363796131,1748874640421,-1343.79,0.00019589,2]
[363796133,1748874640430,-905.18,0.00019589,2]
[363796135,1748874640441,-420.0,0.00019589,2]
[363796137,1748874640451,-420.0,0.00019589,2]
[363796139,1748874640461,-436.63,0.00019589,2]
[363796141,1748874640474,-8762.19,0.00019589,2]
[363796143,1748874640483,-420.0,0.00019589,2]
[363796145,1748874640493,-2239.61,0.00019589,2]
[363796147,1748874640503,-454.51,0.00019589,2]
[363796149,1748874640512,-420.0,0.00019589,2]
[363796151,1748874640523,-1097.55,0.00019589,2]
[363796153,1748874640534,-420.0,0.00019589,2]
[363796155,1748874640544,-420.0,0.00019589,2]
[363796157,1748874640554,-420.0,0.00019589,2]
[363796159,1748874640563,-420.0,0.00019589,2]
[363796161,1748874640573,-420.0,0.00019589,2]
[363796163,1748874640582,-459.42,0.00019589,2]
[363796165,1748874640591,-681.94,0.00019589,2]
[363796167,1748874640600,-480.65,0.00019589,2]
[363796169,1748874640609,-520.27,0.00019589,2]
[363796170,1748874640619,-420.0,0.00019589,2]
[363796172,1748874640629,-420.0,0.00019589,2]
[363796174,1748874640639,-420.0,0.00019589,2]
[363796176,1748874640648,-442.74,0.00019589,2]
[363796178,1748874640658,-1518.64899319,0.00019596,2]
[363796180,1748874640668,-1682.809116,0.00019599,2]
[363796182,1748874640678,-1161.73,0.000196,2]
[363796184,1748874640687,-170.43,0.000196,2]
[363796186,1748874640697,-340.39,0.000196,2]
[363796188,1748874640706,-2318.8,0.000196,2]
[363796190,1748874640716,-1161.54,0.000196,2]
[363796192,1748874640728,-150.51,0.000196,2]
[363796194,1748874640738,-453.74,0.000196,2]
[363796196,1748874640749,-1900.0,0.000196,7]
[363796198,1748874640760,-2618.2481025,0.00019606,2]
[363796200,1748874640770,-5000.0,0.00019626,2]
[363796202,1748874640780,-150.0,0.00019629,2]
[363796204,1748874640789,-1518.64899319,0.00019656,2]
[363796206,1748874640799,-2715.12328229,0.00019661,2]
[363796208,1748874640808,-460.6,0.00019666,2]
[363796210,1748874640817,-2500.0,0.000197,7]
[363796212,1748874640827,-151.0,0.00019714,2]
[363796214,1748874640837,-1143.93546255,0.00019716,2]
[363796216,1748874640846,-1518.64899319,0.00019717,2]
[363796218,1748874640856,-420.0,0.00019726,2]
[363796220,1748874640866,-985.0,0.00019726,2]
[363796222,1748874640875,-420.0,0.00019726,2]
[363796224,1748874640885,-420.0,0.00019726,2]
[363796226,1748874640895,-431.13,0.00019726,2]
[363796228,1748874640904,-420.0,0.00019726,2]
[363796230,1748874640914,-520.7,0.00019726,2]
[363796232,1748874640924,-991.08,0.00019726,2]
[363796234,1748874640934,-469.25,0.00019726,2]
[363796236,1748874640944,-420.0,0.00019726,2]
[363796238,1748874640953,-1084.4,0.00019726,2]
[363796240,1748874640963,-923.64,0.00019726,2]
[363796242,1748874640973,-632.94,0.00019726,2]
[363796244,1748874640984,-686.7,0.00019726,2]
[363796246,1748874640994,-420.0,0.00019726,2]
[363796248,1748874641003,-1643.78,0.00019726,2]
[363796250,1748874641015,-420.0,0.00019726,2]
[363796252,1748874641025,-420.0,0.00019726,2]
[363796253,1748874641035,-603.44,0.00019726,2]
[363796255,1748874641044,-420.0,0.00019726,2]
[363796257,1748874641055,-420.0,0.00019726,2]
[363796259,1748874641064,-420.0,0.00019726,2]
[363796261,1748874641074,-524.37,0.00019726,2]
[363796264,1748874641084,-578.14,0.00019726,2]
[363796266,1748874641093,-678.68,0.00019726,2]
[363796268,1748874641103,-420.0,0.00019726,2]
[363796270,1748874641114,-483.35,0.00019726,2]
[363796271,1748874641124,-3425.26,0.00019726,2]
[363796273,1748874641133,-420.0,0.00019726,2]
[363796275,1748874641142,-420.0,0.00019726,2]
[363796277,1748874641152,-420.0,0.00019726,2]
[363796279,1748874641163,-2015.96,0.00019726,2]
[363796281,1748874641172,-748.4,0.00019726,2]
[363796283,1748874641183,-420.0,0.00019726,2]
[363796285,1748874641193,-420.0,0.00019726,2]
[363796287,1748874641203,-436.28,0.00019726,2]
[363796289,1748874641212,-420.0,0.00019726,2]
[363796291,1748874641224,-176.72947627,0.00019726,2]
[363796293,1748874641234,-738.97,0.00019726,2]
[363796295,1748874641244,-420.0,0.00019726,2]
[363796298,1748874641254,-420.0,0.00019726,2]
[363796299,1748874641263,-420.0,0.00019726,2]
[363796301,1748874641273,-420.0,0.00019726,2]
[363796303,1748874641283,-1343.79,0.00019726,2]
[363796305,1748874641293,-905.18,0.00019726,2]
[363796307,1748874641303,-420.0,0.00019726,2]
[363796309,1748874641312,-420.0,0.00019726,2]
[363796311,1748874641322,-436.63,0.00019726,2]
[363796313,1748874641331,-8762.19,0.00019726,2]
[363796315,1748874641340,-420.0,0.00019726,2]
[363796317,1748874641350,-2239.61,0.00019726,2]
[363796319,1748874641361,-454.51,0.00019726,2]
[363796321,1748874641371,-420.0,0.00019726,2]
[363796323,1748874641381,-1097.55,0.00019726,2]
[363796325,1748874641392,-420.0,0.00019726,2]
[363796327,1748874641402,-420.0,0.00019726,2]
[363796329,1748874641413,-420.0,0.00019726,2]
[363796331,1748874641424,-420.0,0.00019726,2]
[363796333,1748874641434,-420.0,0.00019726,2]
[363796335,1748874641445,-681.94,0.00019726,2]
[363796337,1748874641456,-480.65,0.00019726,2]
[363796339,1748874641467,-520.27,0.00019726,2]
[363796341,1748874641485,-420.0,0.00019726,2]
[363796343,1748874641495,-420.0,0.00019726,2]
[363796345,1748874641505,-420.0,0.00019726,2]
[363796347,1748874641516,-442.74,0.00019726,2]
[363796349,1748874641526,-150.0,0.00019731,2]
[363796351,1748874641537,-2158.08958017,0.00019763,2]
[363796353,1748874641548,-4930.0431,0.00019763,2]
[363796355,1748874641558,-159.01239444,0.0001977,2]
[363796357,1748874641569,-2158.08958012,0.00019778,2]
[363796359,1748874641580,-1518.64899319,0.00019778,2]
[363796361,1748874641593,-2158.08958012,0.00019793,2]
[363796363,1748874641604,-1000.0,0.00019795,2]
[363796365,1748874641615,-1161.73,0.000198,2]
[363796367,1748874641626,-3200.0,0.000198,7]
[363796369,1748874641637,-300.0,0.00019808,2]
[363796371,1748874641649,-2158.08958012,0.00019809,2]
[363796373,1748874641660,-2158.08958012,0.00019824,2]
[363796375,1748874641670,-2158.08958012,0.00019839,2]
[363796377,1748874641682,-1518.64899319,0.00019839,2]
[363796379,1748874641692,-2158.08958012,0.00019854,2]
[363796381,1748874641703,-420.0,0.00019863,2]
[363796382,1748874641714,-985.0,0.00019863,2]
[363796384,1748874641731,-420.0,0.00019863,2]
[363796385,1748874641742,-487.33173845,0.00019863,2]
[363796387,1748874641753,-431.13,0.00019863,2]
[363796389,1748874641763,-520.7,0.00019863,2]
[363796391,1748874641774,-991.08,0.00019863,2]
[363796393,1748874641786,-469.25,0.00019863,2]
[363796395,1748874641800,-420.0,0.00019863,2]
[363796397,1748874641813,-1084.4,0.00019863,2]
[363796399,1748874641824,-923.64,0.00019863,2]
[363796401,1748874641835,-632.94,0.00019863,2]
[363796403,1748874641845,-686.7,0.00019863,2]
[363796405,1748874641856,-420.0,0.00019863,2]
[363796407,1748874641867,-1643.78,0.00019863,2]
[363796409,1748874641877,-420.0,0.00019863,2]
[363796410,1748874641887,-420.0,0.00019863,2]
[363796412,1748874641897,-603.44,0.00019863,2]
[363796414,1748874641908,-420.0,0.00019863,2]
[363796416,1748874641918,-420.0,0.00019863,2]
[363796418,1748874641928,-420.0,0.00019863,2]
[363796420,1748874641938,-524.37,0.00019863,2]
[363796422,1748874641948,-578.14,0.00019863,2]
[363796424,1748874641959,-420.0,0.00019863,2]
[363796426,1748874641969,-678.68,0.00019863,2]
[363796428,1748874641983,-483.35,0.00019863,2]
[363796430,1748874641993,-3425.26,0.00019863,2]
[363796432,1748874642003,-420.0,0.00019863,2]
[363796434,1748874642013,-420.0,0.00019863,2]
[363796436,1748874642026,-420.0,0.00019863,2]
[363796438,1748874642036,-2015.96,0.00019863,2]
[363796440,1748874642045,-748.4,0.00019863,2]
[363796442,1748874642057,-420.0,0.00019863,2]
[363796444,1748874642066,-436.28,0.00019863,2]
[363796446,1748874642076,-420.0,0.00019863,2]
[363796448,1748874642085,-738.97,0.00019863,2]
[363796450,1748874642096,-420.0,0.00019863,2]
[363796452,1748874642106,-420.0,0.00019863,2]
[363796454,1748874642115,-420.0,0.00019863,2]
[363796455,1748874642124,-420.0,0.00019863,2]
[363796457,1748874642134,-1343.79,0.00019863,2]
[363796459,1748874642144,-905.18,0.00019863,2]
[363796461,1748874642154,-420.0,0.00019863,2]
[363796463,1748874642165,-420.0,0.00019863,2]
[363796465,1748874642175,-436.63,0.00019863,2]
[363796467,1748874642185,-8762.19,0.00019863,2]
[363796469,1748874642195,-420.0,0.00019863,2]
[363796471,1748874642206,-2239.61,0.00019863,2]
[363796473,1748874642215,-454.51,0.00019863,2]
[363796475,1748874642227,-420.0,0.00019863,2]
[363796477,1748874642238,-1097.55,0.00019863,2]
[363796479,1748874642248,-420.0,0.00019863,2]
[363796481,1748874642257,-209.02847097,0.00019863,2]
[363796483,1748874642267,-420.0,0.00019863,2]
[363796485,1748874642276,-420.0,0.00019863,2]
[363796486,1748874642286,-420.0,0.00019863,2]
[363796489,1748874642296,-681.94,0.00019863,2]
[363796492,1748874642306,-480.65,0.00019863,2]
[363796494,1748874642316,-520.27,0.00019863,2]
[363796496,1748874642326,-420.0,0.00019863,2]
[363796498,1748874642335,-420.0,0.00019863,2]
[363796500,1748874642345,-420.0,0.00019863,2]
[363796502,1748874642355,-442.74,0.00019863,2]
[363796504,1748874642366,-2158.08958012,0.0001987,2]
[363796506,1748874642376,-943.0,0.00019875,2]
[363796508,1748874642385,-4202.265,0.00019875,2]
[363796510,1748874642395,-175.864,0.00019875,2]
[363796512,1748874642405,-58905.76814877,0.0001988,2]
[363796514,1748874642415,-2158.08958012,0.00019885,2]
[363796516,1748874642425,-1518.64899319,0.000199,2]
[363796518,1748874642434,-2158.08958012,0.000199,2]
[363796520,1748874642444,-600.0,0.000199,7]
[363796522,1748874642454,-5764.09316518,0.000199,2]
[363796523,1748874642463,-327.47187616,0.0001991,2]
[363796525,1748874642475,-2434.959,0.00019918,2]
[363796527,1748874642485,-167.891,0.00019918,2]
[363796529,1748874642495,-1000.0,0.00019947,2]
[363796532,1748874642505,-175.82066896,0.00019973,2]
[363796534,1748874642514,-500.0,0.00019973,2]
[363796536,1748874642524,-500.0,0.00019973,2]
[363796538,1748874642533,-500.0,0.00019973,2]
[363796540,1748874642543,-500.0,0.00019973,2]
[363796542,1748874642552,-165.92301587,0.00019973,2]
[363796544,1748874642562,-500.0,0.00019973,2]
[363796545,1748874642572,-12500.0,0.00019973,2]
[363796547,1748874642582,-1000.0,0.00019974,2]
[363796549,1748874642591,-151.43323835,0.0001998,2]
[363796551,1748874642601,-246.38745175,0.00019981,2]
[363796553,1748874642610,-165.71713141,0.00019989,2]
[363796555,1748874642621,-1007.0,0.00019995,2]
[363796557,1748874642631,-756081.09344907,0.00019995,2]
[363796559,1748874642641,-789.8855603,0.00019996,2]
[363796561,1748874642651,-7548.9773481,0.00019996,2]
[363796563,1748874642661,-129835.9019409,0.00019996,2]
[363796565,1748874642670,-5111.0043459,0.00019996,2]
[363796567,1748874642679,-23047.0434687,0.00019996,2]
[363796569,1748874642689,-300.0,0.00019999,2]
[363796571,1748874642698,-1007.0,0.00019999,2]
[363796572,1748874642709,-1007.0,0.00019999,2]
[363796574,1748874642718,-1000.0,0.00019999,2]
[363796576,1748874642730,-500.0,0.00019999,2]
[363796578,1748874642739,-201.57057131,0.00019999,2]
[363796580,1748874642749,-500.0,0.00019999,2]
[363796582,1748874642759,-500.0,0.00019999,2]
[363796584,1748874642768,-237.12337267,0.00019999,2]
[363796586,1748874642777,-491.63103733,0.00019999,2]
[363796588,1748874642786,-415.54853439,0.00019999,2]
[363796590,1748874642796,-500.0,0.00019999,2]
[363796592,1748874642805,-500.0,0.00019999,2]
[363796594,1748874642815,-500.0,0.00019999,2]
[363796596,1748874642825,-500.0,0.00019999,2]
[363796598,1748874642834,-213.82752372,0.00019999,2]
[363796599,1748874642843,-500.0,0.00019999,2]
[363796601,1748874642853,-500.0,0.00019999,2]
[363796603,1748874642862,-500.0,0.00019999,2]
[363796605,1748874642871,-500.0,0.00019999,2]
[363796607,1748874642881,-302.36656719,0.00019999,2]
[363796609,1748874642890,-500.0,0.00019999,2]
[363796611,1748874642900,-500.0,0.00019999,2]
[363796613,1748874642909,-500.0,0.00019999,2]
[363796615,1748874642918,-489.17477039,0.00019999,2]
[363796617,1748874642927,-500.0,0.00019999,2]
[363796619,1748874642937,-500.0,0.00019999,2]
[363796621,1748874642950,-500.0,0.00019999,2]
[363796623,1748874642961,-500.0,0.00019999,2]
[363796625,1748874642974,-500.0,0.00019999,2]
[363796627,1748874642983,-500.0,0.00019999,2]
[363796628,1748874642992,-500.0,0.00019999,2]
[363796630,1748874643002,-500.0,0.00019999,2]
[363796633,1748874643011,-380.62624949,0.00019999,2]
[363796635,1748874643023,-500.0,0.00019999,2]
[363796638,1748874643033,-500.0,0.00019999,2]
[363796640,1748874643043,-500.0,0.00019999,2]
[363796642,1748874643052,-570.0,0.00019999,2]
[363796644,1748874643063,-570.0,0.00019999,2]
[363796646,1748874643072,-570.0,0.00019999,2]
[363796648,1748874643082,-570.0,0.00019999,2]
[363796650,1748874643093,-570.0,0.00019999,2]
[363796652,1748874643103,-406.98048991,0.00019999,2]
[363796654,1748874643114,-227.41336413,0.00019999,2]
[363796656,1748874643124,-1232.26384386,0.00019999,2]
[363796658,1748874643133,-1031093.470258,0.00019999,2]
[363796660,1748874643143,-147726.85864778,0.0002,2]
[363796662,1748874643152,-45000.0,0.0002,2]
[363796664,1748874643162,-5800.0,0.0002,2]
[363796665,1748874643172,-3300.0,0.0002,8]
[363796667,1748874643181,-3000.0,0.0002,6]
[363796669,1748874643191,-2712.65,0.0002,9]
[363796671,1748874643201,-1362.00062862,0.0002,2]
[363796673,1748874643211,-50000.0,0.0002,2]
[363796675,1748874643225,-5127.14929788,0.0002,2]
[363796677,1748874643236,-23425.22,0.0002,2]
[363796678,1748874643246,-1300.11796472,0.0002,2]
[363796680,1748874643255,-1513.60541693,0.0002,2]
[363796682,1748874643265,-534044.9691386,0.0002,2]
[363796685,1748874643280,-10430.0,0.0002,2]
[363796687,1748874643291,-240877.03780431,0.0002,2]
[363796689,1748874643302,-640.44687744,0.0002,2]
[363796691,1748874643313,-10614.37480358,0.0002,2]
[363796693,1748874643324,-1309.9999,0.0002,2]
[363796696,1748874643345,-1817.249975,0.00019875,2]
[363796698,1748874643356,-1778.0,0.00019875,2]
[363796716,1748874643534,-350.67555502,0.00019875,2]
[363796895,1748874645490,-420.0,0.00019178,2]
[363796897,1748874645499,-420.0,0.00019315,2]
[363796899,1748874645509,-420.0,0.00019452,2]
[363796901,1748874645519,-1091.35740001,0.00019875,2]
[363796903,1748874645530,-1972.71706997,0.00019875,2]
[363796905,1748874645540,-4940.34747168,0.0002,2]
[363796911,1748874645595,-420.0,0.00019589,2]
[363796913,1748874645605,-882.0,0.00019875,2]
[363796915,1748874645615,-6136.8159,0.0002,2]
[363796917,1748874645627,-2535.0,0.0002,2]
[363796920,1748874645639,-556.15,0.0002,2]
[363797051,1748874646999,-420.0,0.00019726,2]
[363797053,1748874647009,-420.0,0.00019863,2]
[363797055,1748874647019,-400.62,0.0001999,3]
[363797057,1748874647030,-261.29455369,0.0002,2]
[363797112,1748874647576,-715.1210082,0.0002,2]
[363797114,1748874647588,-529.6776807,0.0002,2]
[363797116,1748874647599,-609.73,0.0002,2]
[363797119,1748874647612,-500.0,0.0002,2]
[363797517,1748874713688,666.7325,0.0001897,2]
[363797521,1748874731702,150.0,0.00023,30]
[363797522,1748874737993,1132.0,0.00023,30]
[363797523,1748874741528,500.0,0.00018909,2]
[363797524,1748874745361,164.37391605,0.00023,30]
[363797525,1748874746784,150.0,0.00023,30]
[363797526,1748874785056,500.0,0.00023,30]
[363797527,1748874791415,500.0,0.00023,30]
[363797528,1748874793310,150.0,0.00023,30]
[363797529,1748874806437,150.0,0.00023,30]
[363797530,1748874807995,500.0,0.00023,30]
[363797531,1748874812798,500.0,0.00023,30]
[363797532,1748874813894,249.68433788,0.00023,30]
[363797533,1748874815039,500.0,0.00023,30]
[363797535,1748874852947,190.22,0.00013699,2]
[363797536,1748874968369,500.0,0.00023,30]
[363797537,1748874980130,150.0,0.00023,30]
[363797538,1748874982953,500.0,0.00023,30]
[363797539,1748875036521,1085.0,0.00023,30]
[363797540,1748875046357,260.31345338,0.00023,30]
[363797541,1748875055365,250.0,0.00018631,2]
[363797544,1748875211594,150.0,0.00023,30]
[363797545,1748875223648,150.0,0.00023,30]
[363797546,1748875226434,500.0,0.00023,30]
[363797547,1748875237732,22779.41,0.00018581,2]
[363797548,1748875294410,2010.83,0.00018667,2]
[363797550,1748875313112,170.15,0.0001869,2]
[363797552,1748875328436,150.0,0.00018709,2]
[363797553,1748875331635,202.0,0.00018335,2]
[363797554,1748875339434,150.0,0.00023,30]
[363797555,1748875345939,1040.0,0.00023,30]
[363797556,1748875374664,204.0,0.00023,30]
[363797557,1748875393430,150.0,0.00023,30]
[363797558,1748875401396,150.0,0.00023,30]
[363797559,1748875403525,150.0,0.00023,30]
[363797561,1748875417949,150.0,0.00023,30]
[363797562,1748875427898,258.50780361,0.00023,30]
[363797563,1748875429095,150.0,0.00023,30]
[363797566,1748875479100,7186.12,0.00018588,2]
[363797567,1748875496442,1000.0,0.00018588,2]
[363797568,1748875505615,500.0,0.00023,30]
[363797569,1748875511552,150.0,0.00023,30]
[363797572,1748875625097,281.07894466,0.00023,30]
[363797573,1748875632497,3000.0,0.00019,2]
[363797574,1748875635674,150.0,0.00023,30]
[363797575,1748875636511,552.53,0.00016491,2]
[363797576,1748875636699,244.42,0.00018394,2]
[363797577,1748875636737,552.53,0.00018755,2]
[363797578,1748875636943,150.0,0.00023,30]
[363797580,1748875696352,997.0,0.00023,30]
[363797582,1748875753170,4943.55,0.00018364,2]
[363797584,1748875779622,300.0,0.00023,30]
[363797587,1748875817593,188.24,0.00013699,2]
[363797588,1748875821305,150.0,0.00023,30]
[363797605,1748875831631,-278.94,0.00019038,2]
[363797606,1748875831642,-0.80419682,0.00019043,2]
[363797607,1748875831660,-399.19580318,0.00019043,2]
[363797608,1748875831669,-276.3552,0.00019078,2]
[363797609,1748875831679,-869.41711614,0.00019078,2]
[363797610,1748875831691,-927.61514,0.00019078,2]
[363797611,1748875831761,-501.312,0.00019078,2]
[363797612,1748875831773,-576.78984386,0.00019078,2]
[363797613,1748875831783,-329.6091838,0.0001908,2]
[363797614,1748875831795,-70.3908162,0.0001908,2]
[363797615,1748875831809,-300.0,0.00019164,2]
[363797616,1748875831819,-1200.0,0.00019164,2]
[363797617,1748875831829,-151.0,0.00019166,2]
[363797618,1748875831839,-151.0,0.00019166,2]
[363797619,1748875831848,-1115.157653,0.00019166,2]
[363797620,1748875831858,-668.65185757,0.00019166,2]
[363797621,1748875831868,-151.0,0.00019166,2]
[363797622,1748875831878,-207.4,0.00019166,2]
[363797623,1748875831888,-420.0,0.00019178,2]
[363797624,1748875831898,-420.0,0.00019178,2]
[363797625,1748875831908,-420.0,0.00019178,2]
[363797626,1748875831918,-420.0,0.00019178,2]
[363797627,1748875831928,-420.0,0.00019178,2]
[363797628,1748875831938,-420.0,0.00019178,2]
[363797629,1748875831948,-420.0,0.00019178,2]
[363797630,1748875831958,-420.0,0.00019178,2]
[363797631,1748875831971,-420.0,0.00019178,2]
[363797632,1748875831982,-420.0,0.00019178,2]
[363797633,1748875831992,-420.0,0.00019178,2]
[363797634,1748875832002,-420.0,0.00019178,2]
[363797635,1748875832012,-420.0,0.00019178,2]
[363797636,1748875832023,-420.0,0.00019178,2]
[363797637,1748875832033,-420.0,0.00019178,2]
[363797638,1748875832043,-420.0,0.00019178,2]
[363797639,1748875832054,-420.0,0.00019178,2]
[363797640,1748875832064,-420.0,0.00019178,2]
[363797641,1748875832078,-420.0,0.00019178,2]
[363797642,1748875832088,-420.0,0.00019178,2]
[363797643,1748875832097,-192.22110551,0.00019178,2]
[363797644,1748875832107,-420.0,0.00019178,2]
[363797645,1748875832116,-420.0,0.00019178,2]
[363797646,1748875832126,-420.0,0.00019178,2]
[363797647,1748875832135,-373.13840906,0.00019178,2]
[363797648,1748875832147,-46.86159094,0.00019178,2]
[363797649,1748875832156,-420.0,0.00019178,2]
[363797650,1748875832166,-420.0,0.00019178,2]
[363797651,1748875832176,-420.0,0.00019178,2]
[363797652,1748875832186,-420.0,0.00019178,2]
[363797653,1748875832195,-420.0,0.00019178,2]
[363797654,1748875832205,-420.0,0.00019178,2]
[363797655,1748875832215,-420.0,0.00019178,2]